bitfinex-derivatives/quotes_BNBF0:USTF0_20250101
["timestamp","ask_amount","ask_price","bid_price","bid_amount"]
[1735702898457,0.26067011,706.82,705.61,1.06261399]
[1735702898662,0.26067011,706.81,705.61,1.06261399]
[1735702898857,0.26067011,706.8,705.61,1.06261399]
[1735702899061,0.26067011,706.79,705.61,1.06261399]
[1735702899254,0.26067011,706.78,705.61,1.06261399]
[1735702899560,0.26067011,706.77,705.6,1.06261399]
[1735702899755,0.26067011,706.76,705.6,1.06261399]
[1735702899959,0.26067011,706.75,705.6,1.06261399]
[1735702900160,0.26067011,706.74,705.6,1.06261399]
[1735702900462,0.26067011,706.73,705.66,1.06261399]
[1735702900756,0.26067113,706.72,705.66,1.06261399]
[1735702900962,0.26067113,706.71,705.66,1.06261399]
[1735702901162,0.26067113,706.7,705.66,1.06261399]
[1735702901359,0.26067042,706.69,705.66,1.06261399]
[1735702901658,0.26067042,706.68,705.66,1.06261399]
[1735702901863,1.05405819,706.83,705.66,1.06261399]
[1735702902163,0.26067112,706.82,705.66,1.06261399]
[1735702902364,0.26067112,706.82,705.65,1.06261399]
[1735702902565,0.26067112,706.81,705.65,1.06261399]
[1735702902762,0.26067112,706.8,705.65,1.06261399]
[1735702902966,0.26067112,706.79,705.65,1.06261399]
[1735702903167,0.26067112,706.78,705.55,1.06261399]
[1735702903359,0.26069491,706.77,705.55,1.06261399]
[1735702903567,0.26069491,706.76,705.55,1.06261399]
[1735702903765,0.26069491,706.75,705.55,1.06261399]
[1735702903965,0.26069491,706.74,705.55,1.06261399]
[1735702904266,0.26069491,706.73,705.51,1.06261399]
[1735702904467,0.26069491,706.72,705.51,1.06261399]
[1735702904665,0.26069491,706.71,705.51,1.06261399]
[1735702904863,0.26069491,706.7,705.51,1.06261399]
[1735702905169,0.26069491,706.69,705.5,1.06261399]
[1735702905368,0.26069491,706.68,705.5,1.06261399]
[1735702905561,1.4784656,706.77,705.5,1.06261399]
[1735702905761,0.2606955,706.76,705.5,1.06261399]
[1735702906366,0.2606955,706.76,705.49,1.06261399]
[1735702907567,0.2606955,706.76,705.47,1.06261399]
[1735702907960,0.26069778,706.75,705.47,1.06261399]
[1735702908166,0.26069778,706.74,705.47,1.06261399]
[1735702908463,0.26069778,706.73,705.47,1.06261399]
[1735702908665,1.4784656,706.77,705.48,1.06261399]
[1735702908666,0.26069526,706.72,705.48,1.06261399]
[1735702908866,0.26069526,706.71,705.48,1.06261399]
[1735702909068,0.26069526,706.7,705.48,1.06261399]
[1735702909365,0.26069526,706.69,705.48,1.06261399]
[1735702909566,0.26069526,706.68,705.48,1.06261399]
[1735702909769,1.4784656,706.77,705.48,1.06261399]
[1735702910067,0.26069526,706.76,705.48,1.06261399]
[1735702910866,0.26069526,706.76,705.47,1.06261399]
[1735702911262,1.4784656,706.77,705.47,1.06261399]
[1735702911463,0.26069426,706.76,705.47,1.06261399]
[1735702913266,0.26069426,706.76,705.48,1.06261399]
[1735702913969,0.26069127,706.75,705.48,1.06261399]
[1735702914169,0.26069127,706.74,705.48,1.06261399]
[1735702914363,0.26069127,706.73,705.48,1.06261399]
[1735702914568,0.26069127,706.72,705.54,1.06261399]
[1735702914763,0.26069127,706.71,705.54,1.06261399]
[1735702914963,0.26069127,706.7,705.54,1.06261399]
[1735702915169,0.26069127,706.69,705.54,1.06261399]
[1735702915467,1.4784656,706.77,705.53,1.06261399]
[1735702915468,0.26069127,706.68,705.53,1.06261399]
[1735702915668,0.26069127,706.67,705.53,1.06261399]
[1735702915869,0.26069127,706.66,705.53,1.06261399]
[1735702916169,0.26069127,706.65,705.53,1.06261399]
[1735702916368,0.26069127,706.64,705.53,1.06261399]
[1735702916569,1.4784656,706.77,705.56,1.06261399]
[1735702916766,0.26069505,706.76,705.56,1.06261399]
[1735702917371,0.26069607,706.75,705.56,1.06261399]
[1735702917577,0.26069607,706.74,705.55,1.06261399]
[1735702917771,0.26069607,706.73,705.55,1.06261399]
[1735702917970,0.26069607,706.72,705.55,1.06261399]
[1735702918165,0.26069607,706.71,705.55,1.06261399]
[1735702918364,0.26069607,706.7,705.55,1.06261399]
[1735702918564,0.26069607,706.69,705.55,1.06261399]
[1735702918769,0.26069607,706.69,705.1,0.71410675]
[1735702918770,0.26069607,706.68,705.56,1.06261399]
[1735702919067,0.26069607,706.67,705.56,1.06261399]
[1735702919266,0.26069607,706.66,705.56,1.06261399]
[1735702919470,0.26069607,706.65,705.56,1.06261399]
[1735702919669,0.26069607,706.64,705.56,1.06261399]
[1735702919871,0.26069607,706.63,705.56,1.06261399]
[1735702920072,0.26069607,706.62,705.56,1.06261399]
[1735702920271,0.26069607,706.61,705.56,1.06261399]
[1735702920574,1.4784656,706.77,705.38,1.06261399]
[1735702920575,0.26069607,706.6,705.57,1.06261399]
[1735702920874,0.26069607,706.59,705.57,1.06261399]
[1735702921073,0.26069607,706.58,705.57,1.06261399]
[1735702921273,0.26069214,706.57,705.57,1.06261399]
[1735702921470,0.26069214,706.56,705.59,1.06261399]
[1735702921675,1.4784656,706.77,705.59,1.06261399]
[1735702921874,0.26069274,706.76,705.59,1.06261399]
[1735702922474,0.26069274,706.76,705.38,0.28353511]
[1735702922475,0.26069274,706.76,705.6,1.06261399]
[1735702923475,1.05405819,706.75,705.61,1.06261399]
[1735702923974,0.26069569,706.74,705.61,1.06261399]
[1735702924575,1.31474883,706.73,705.62,1.06261399]
[1735702924874,0.26069064,706.72,705.62,1.06261399]
[1735702925874,0.26069064,706.72,705.65,1.06261399]
[1735702926574,0.2606921,706.71,705.65,1.06261399]
[1735702926769,0.2606921,706.7,705.65,1.06261399]
[1735702926974,0.2606921,706.69,705.66,1.06261399]
[1735702927171,0.2606921,706.68,705.66,1.06261399]
[1735702927374,0.2606921,706.67,705.66,1.06261399]
[1735702927574,0.2606921,706.66,705.66,1.06261399]
[1735702927775,0.2606921,706.65,705.66,1.06261399]
[1735702927971,0.2606921,706.64,705.66,1.06261399]
[1735702928175,0.2606921,706.63,705.68,1.06261399]
[1735702928377,0.2606921,706.62,705.68,1.06261399]
[1735702928677,0.2606921,706.61,705.68,1.06261399]
[1735702928878,0.2606921,706.6,705.68,1.06261399]
[1735702929079,0.2606921,706.59,705.68,1.06261399]
[1735702929280,1.05405819,706.64,705.75,1.06261399]
[1735702929479,0.26069187,706.63,705.75,1.06261399]
[1735702930578,1.31475006,706.63,705.75,1.06261399]
[1735702930773,0.26069187,706.62,705.75,1.06261399]
[1735702931879,1.05405819,706.63,705.75,1.06261399]
[1735702932081,0.26069045,706.62,705.75,1.06261399]
[1735702932781,1.05405819,706.63,705.75,1.06261399]
[1735702933081,0.26068739,706.62,705.75,1.06261399]
[1735702933380,0.26068714,706.61,705.75,1.06261399]
[1735702933576,1.05405819,706.64,705.75,1.06261399]
[1735702933778,0.26068816,706.63,705.75,1.06261399]
[1735702933975,0.26068816,706.63,705.77,1.06261399]
[1735702935375,1.05405819,706.6,705.75,1.06261399]
[1735702935578,0.26068816,706.59,705.75,1.06261399]
[1735702936280,1.05405819,706.57,705.75,1.06261399]
[1735702936482,0.26068816,706.56,705.75,1.06261399]
[1735702937275,1.05405819,706.57,705.75,1.06261399]
[1735702937479,0.26070199,706.56,705.75,1.06261399]
[1735702937680,1.05405819,706.55,705.78,1.06261399]
[1735702938476,1.05405819,706.55,705.8,1.06261399]
[1735702939583,0.26070288,706.54,705.8,1.06261399]
[1735702940082,1.05405819,706.55,705.8,1.06261399]
[1735702940282,0.26070303,706.54,705.8,1.06261399]
[1735702940581,1.05405819,706.55,705.8,1.06261399]
[1735702940981,1.05405819,706.54,705.78,1.06261399]
[1735702942082,1.05405819,706.55,705.8,1.06261399]
[1735702942282,0.26070291,706.54,705.8,1.06261399]
[1735702942683,1.05405819,706.55,705.8,1.06261399]
[1735702942883,0.26070212,706.54,705.8,1.06261399]
[1735702943083,1.31476031,706.54,705.78,1.06261399]
[1735702943284,1.05405819,706.54,705.78,1.06261399]
[1735702944386,1.05405819,706.55,705.79,1.06261399]
[1735702944586,0.26070214,706.54,705.79,1.06261399]
[1735702945581,1.05405819,706.53,705.77,1.06261399]
[1735702945784,0.26070214,706.52,705.77,1.06261399]
[1735702946185,1.05405819,706.53,705.77,1.06261399]
[1735702946385,0.26071093,706.52,705.77,1.06261399]
[1735702946783,0.26071093,706.52,705.75,1.06261399]
[1735702947182,1.05405819,706.53,705.75,1.06261399]
[1735702948188,0.2607101,706.52,705.75,1.06261399]
[1735702948790,1.05405819,706.54,705.75,1.06261399]
[1735702948991,0.26071088,706.53,705.75,1.06261399]
[1735702949487,1.05405819,706.54,705.75,1.06261399]
[1735702949691,0.26071088,706.53,705.75,1.06261399]
[1735702950992,0.26071088,706.53,705.74,1.06261399]
[1735702951485,1.05405819,706.54,705.74,1.06261399]
[1735702951685,0.26070877,706.53,705.74,1.06261399]
[1735702951889,0.26070877,706.53,705.75,1.06261399]
[1735702952090,1.05405819,706.55,705.75,1.06261399]
[1735702952291,0.26070877,706.54,705.75,1.06261399]
[1735702953088,0.26070877,706.54,705.74,1.06261399]
[1735702954095,1.31476696,706.54,705.74,1.06261399]
[1735702954287,0.26071091,706.53,705.74,1.06261399]
[1735702956396,0.26071139,706.52,705.74,1.06261399]
[1735702956589,1.05405819,706.55,705.74,1.06261399]
[1735702956790,0.260712,706.54,705.74,1.06261399]
[1735702956990,0.26071139,706.53,705.74,1.06261399]
[1735702957197,0.26071139,706.52,705.73,1.06261399]
[1735702957391,1.05405819,706.55,705.73,1.06261399]
[1735702957798,0.2607114,706.54,705.73,1.06261399]
[1735702958100,1.05405819,706.55,705.73,1.06261399]
[1735702958301,0.2607033,706.54,705.73,1.06261399]
[1735702958600,1.05405819,706.55,705.73,1.06261399]
[1735702959302,0.26070494,706.54,705.73,1.06261399]
[1735702959501,1.05405819,706.58,705.77,1.06261399]
[1735702959800,0.26069955,706.57,705.77,1.06261399]
[1735702960999,1.05405819,706.55,705.73,1.06261399]
[1735702961197,0.26069955,706.54,705.73,1.06261399]
[1735702961698,1.05405819,706.55,705.73,1.06261399]
[1735702961902,1.4784656,706.77,705.73,1.06261399]
[1735702961903,0.26070919,706.54,705.73,1.06261399]
[1735702962097,1.05405819,706.56,705.73,1.06261399]
[1735702962301,0.26070936,706.55,705.73,1.06261399]
[1735702964904,0.26071124,706.54,705.73,1.06261399]
[1735702965100,1.05405819,706.56,705.73,1.06261399]
[1735702965306,1.05405819,706.56,705.39,0.71410675]
[1735702965307,0.26070916,706.55,705.72,1.06261399]
[1735702965704,1.05405819,706.56,705.72,1.06261399]
[1735702966304,1.05405819,706.6,705.7,1.06261399]
[1735702966805,0.26069765,706.59,705.7,1.06261399]
[1735702967600,1.05405819,706.55,705.65,1.06261399]
[1735702968606,1.05405819,706.63,705.67,1.06261399]
[1735702968805,0.26071022,706.62,705.67,1.06261399]
[1735702969706,1.05405819,706.6,705.67,1.06261399]
[1735702970400,1.05405819,706.6,705.45,1.06261399]
[1735702970401,1.05405819,706.6,705.68,1.06261399]
[1735702971909,1.05405819,706.59,705.68,1.06261399]
[1735702972811,1.05405819,706.59,705.65,1.06261399]
[1735702973713,1.05405819,706.58,705.64,1.06261399]
[1735702973912,0.26072505,706.57,705.64,1.06261399]
[1735702974909,1.05405819,706.56,705.65,1.06261399]
[1735702976314,1.05405819,706.55,705.65,1.06261399]
[1735702977215,1.05405819,706.57,705.66,1.06261399]
[1735702977415,0.26072335,706.56,705.66,1.06261399]
[1735702978212,0.26072335,706.56,705.39,0.71587895]
[1735702978213,1.05405819,706.52,705.69,1.06261399]
[1735702978710,0.26072456,706.51,705.69,1.06261399]
[1735702980016,1.05405819,706.52,705.69,1.06261399]
[1735702980211,1.05405819,706.53,705.69,1.06261399]
[1735702981916,1.05405819,706.54,705.64,1.06261399]
[1735702982314,0.26073311,706.53,705.64,1.06261399]
[1735702983517,1.05405819,706.55,705.64,1.06261399]
[1735702983518,0.26073311,706.52,705.64,1.06261399]
[1735702983718,0.26073311,706.51,705.64,1.06261399]
[1735702983920,0.26073311,706.5,705.64,1.06261399]
[1735702984118,0.26073311,706.49,705.64,1.06261399]
[1735702984321,1.05405819,706.51,705.56,1.06261399]
[1735702984514,0.26075763,706.5,705.56,1.06261399]
[1735702985619,1.05405819,706.51,705.56,1.06261399]
[1735702986220,1.05405819,706.53,705.5,1.06261399]
[1735702986424,0.26075317,706.52,705.5,1.06261399]
[1735702986919,1.05405819,706.53,705.5,1.06261399]
[1735702987219,1.05405819,706.56,705.49,1.06261399]
[1735702988222,1.05405819,706.67,705.57,1.06261399]
[1735702988522,0.26071833,706.66,705.57,1.06261399]
[1735702989123,0.26071833,706.66,705.6,1.06261399]
[1735702989321,0.26071833,706.65,705.6,1.06261399]
[1735702989516,0.26071833,706.64,705.6,1.06261399]
[1735702989821,0.26071833,706.63,705.6,1.06261399]
[1735702990122,1.05405819,706.68,705.6,1.06261399]
[1735702990323,0.26071138,706.67,705.61,1.06261399]
[1735702990519,0.26071138,706.66,705.61,1.06261399]
[1735702990822,0.26071138,706.65,705.61,1.06261399]
[1735702991022,0.2607265,706.64,705.61,1.06261399]
[1735702991224,0.2607265,706.68,705.61,1.06261399]
[1735702991424,0.2607265,706.67,705.6,1.06261399]
[1735702991823,1.05405819,706.68,705.6,1.06261399]
[1735702992021,0.26076726,706.67,705.6,1.06261399]
[1735702992725,0.26076726,706.67,705.55,1.06261399]
[1735702992726,1.05405819,706.64,705.55,1.06261399]
[1735702992923,0.26076726,706.63,705.55,1.06261399]
[1735702993723,1.05405819,706.58,705.38,0.28353511]
[1735702993922,0.26076726,706.57,705.38,0.28353511]
[1735702994218,0.26078954,706.56,705.38,0.28353511]
[1735702994423,1.05405819,706.58,705.38,0.28353511]
[1735702994424,0.26078954,706.55,705.38,0.28353511]
[1735702994623,0.26078954,706.54,705.38,0.28353511]
[1735702994819,0.26078954,706.53,705.38,0.28353511]
[1735702995019,0.26078954,706.52,705.38,0.28353511]
[1735702995221,1.05405819,706.59,705.38,0.28353511]
[1735702995931,1.05405819,706.68,705.38,0.28353511]
[1735702996120,0.26077766,706.67,705.38,0.28353511]
[1735702996325,0.26077677,706.66,705.38,0.28353511]
[1735702996522,0.54380231,706.65,705.38,0.28353511]
[1735702996725,0.5438063,706.64,705.38,0.28353511]
[1735702996926,0.54381031,706.63,705.38,0.28353511]
[1735702997226,0.28303755,706.62,705.38,0.28353511]
[1735703003628,0.26073405,706.61,705.38,0.28353511]
[1735703004436,0.26072604,706.6,705.38,0.28353511]
[1735703004732,0.26072417,706.59,705.38,0.28353511]
[1735703004928,0.28303755,706.62,705.38,0.28353511]
[1735703004929,0.26072417,706.58,705.38,0.28353511]
[1735703005134,0.26072417,706.57,705.52,1.06261399]
[1735703005435,0.26072346,706.56,705.52,1.06261399]
[1735703005630,0.26072346,706.55,705.52,1.06261399]
[1735703005834,0.28303755,706.62,705.52,1.06261399]
[1735703006035,0.26072285,706.61,705.52,1.06261399]
[1735703006235,0.26072285,706.61,705.53,1.06261399]
[1735703007338,0.26072487,706.6,705.53,1.06261399]
[1735703007539,0.26072487,706.59,705.52,1.06261399]
[1735703007837,0.26072487,706.58,705.52,1.06261399]
[1735703008038,0.26072487,706.57,705.52,1.06261399]
[1735703008232,0.26072487,706.56,705.52,1.06261399]
[1735703008433,0.28303755,706.62,705.56,1.06261399]
[1735703008638,0.26071211,706.61,705.56,1.06261399]
[1735703009540,0.26071211,706.61,705.58,1.06261399]
[1735703010741,0.26071211,706.61,705.38,0.28353511]
[1735703010742,0.26071211,706.61,705.56,1.06261399]
[1735703011943,0.26071211,706.61,705.58,1.06261399]
[1735703012442,0.28303755,706.62,705.58,1.06261399]
[1735703012642,0.26071387,706.61,705.58,1.06261399]
[1735703013143,0.26071387,706.61,705.57,1.06261399]
[1735703013339,0.2607143,706.6,705.57,1.06261399]
[1735703013540,0.2607143,706.59,705.57,1.06261399]
[1735703013743,0.2607143,706.58,705.57,1.06261399]
[1735703013943,0.2607143,706.57,705.57,1.06261399]
[1735703014245,0.26071669,706.56,705.57,1.06261399]
[1735703014441,0.26071669,706.55,705.57,1.06261399]
[1735703014643,0.28303755,706.62,705.57,1.06261399]
[1735703014839,0.26071437,706.61,705.57,1.06261399]
[1735703016348,0.26071437,706.61,705.58,1.06261399]
[1735703017546,0.26071437,706.61,705.61,1.06261399]
[1735703019951,0.26071437,706.61,705.6,1.06261399]
[1735703020550,0.28303755,706.62,705.6,1.06261399]
[1735703020751,0.26069981,706.61,705.6,1.06261399]
[1735703021148,0.26069981,706.61,705.62,1.06261399]
[1735703021350,0.28303755,706.62,705.62,1.06261399]
[1735703021553,0.26070224,706.61,705.62,1.06261399]
[1735703022054,0.26070224,706.61,705.59,1.06261399]
[1735703025259,0.26070224,706.61,705.38,1.3461491]
[1735703025260,0.26070224,706.61,705.58,1.06261399]
[1735703026161,0.26070183,706.6,705.58,1.06261399]
[1735703026461,0.28303755,706.62,705.58,1.06261399]
[1735703026462,0.26070183,706.59,705.58,1.06261399]
[1735703026656,0.26070183,706.58,705.58,1.06261399]
[1735703026861,0.28303755,706.62,705.58,1.06261399]
[1735703027056,0.2607053,706.61,705.58,1.06261399]
[1735703027756,0.2607053,706.61,705.57,1.06261399]
[1735703028663,0.2607053,706.61,705.58,1.06261399]
[1735703029363,0.28303755,706.62,705.58,1.06261399]
[1735703029561,0.28303755,706.62,705.64,1.06261399]
[1735703030863,0.28303755,706.62,705.68,1.06261399]
[1735703031762,0.28303755,706.62,705.67,1.06261399]
[1735703034367,0.28303755,706.62,705.38,0.28353511]
[1735703034368,0.28303755,706.62,705.65,1.06261399]
[1735703036464,0.28303755,706.62,705.64,1.06261399]
[1735703037866,0.28303755,706.62,705.65,1.06261399]
[1735703039661,0.28303755,706.62,705.66,1.06261399]
[1735703040768,0.28303755,706.62,705.67,1.06261399]
[1735703042369,0.28303755,706.62,705.42,1.06261399]
[1735703042370,0.28303755,706.62,705.68,1.06261399]
[1735703042668,1.05405819,706.96,705.68,1.06261399]
[1735703043267,0.26060274,706.95,705.68,1.06261399]
[1735703043668,0.26060274,706.95,705.78,1.06261399]
[1735703043868,0.26060274,706.96,705.78,1.06261399]
[1735703044068,0.26060274,706.95,705.78,1.06261399]
[1735703044270,0.26060274,706.94,705.78,1.06261399]
[1735703044568,0.26060896,706.93,705.74,1.06261399]
[1735703044764,1.4781516,706.97,705.74,1.06261399]
[1735703045068,0.26060837,706.96,705.74,1.06261399]
[1735703045668,0.26060837,706.96,705.73,1.06261399]
[1735703046663,0.26061529,706.95,705.73,1.06261399]
[1735703046867,0.26061529,706.94,705.7,1.06261399]
[1735703047065,0.26061529,706.93,705.7,1.06261399]
[1735703047269,1.4781516,706.97,705.7,1.06261399]
[1735703047569,0.26061121,706.96,705.7,1.06261399]
[1735703048972,0.26061121,706.96,705.67,1.06261399]
[1735703051473,0.26061121,706.96,705.66,1.06261399]
[1735703051867,0.26061636,706.95,705.66,1.06261399]
[1735703052070,0.26061636,706.94,705.66,1.06261399]
[1735703052271,0.26061636,706.93,705.66,1.06261399]
[1735703052473,0.26061636,706.92,705.67,1.06261399]
[1735703052775,0.2606158,706.91,705.67,1.06261399]
[1735703052973,1.4781516,706.97,705.67,1.06261399]
[1735703052974,0.2606158,706.9,705.67,1.06261399]
[1735703053172,1.4781516,706.97,705.67,1.06261399]
[1735703053173,0.2606158,706.89,705.67,1.06261399]
[1735703053373,0.2606158,706.88,705.67,1.06261399]
[1735703053577,0.2606158,706.87,705.77,1.06261399]
[1735703053769,0.2606158,706.86,705.77,1.06261399]
[1735703053972,1.4781516,706.97,705.77,1.06261399]
[1735703053973,0.2606158,706.85,705.77,1.06261399]
[1735703054172,0.2606158,706.84,705.77,1.06261399]
[1735703054475,1.4781516,706.97,705.78,1.06261399]
[1735703054476,0.2606158,706.83,705.78,1.06261399]
[1735703054676,0.26061471,706.82,705.78,1.06261399]
[1735703054876,0.26061471,706.81,705.78,1.06261399]
[1735703055075,0.26061471,706.8,705.78,1.06261399]
[1735703055269,0.26061471,706.79,705.78,1.06261399]
[1735703055475,0.26061471,706.78,705.78,1.06261399]
[1735703055673,0.26061471,706.77,705.78,1.06261399]
[1735703055871,1.4781516,706.97,705.78,1.06261399]
[1735703056073,0.26061582,706.96,705.78,1.06261399]
[1735703056879,0.26061582,706.96,705.77,1.06261399]
[1735703057272,1.4781516,706.97,705.77,1.06261399]
[1735703057475,0.2606165,706.96,705.77,1.06261399]
[1735703057878,0.2606165,706.96,705.75,1.06261399]
[1735703058875,0.2606165,706.96,705.76,1.06261399]
[1735703059877,1.4781516,706.97,705.76,1.06261399]
[1735703060076,0.26061289,706.96,705.76,1.06261399]
[1735703061382,0.26061289,706.96,705.77,1.06261399]
[1735703062483,0.26061289,706.96,705.8,1.06261399]
[1735703063583,0.26061289,706.96,705.41,0.7129608]
[1735703063584,0.26061289,706.96,705.81,1.06261399]
[1735703063977,0.28290543,706.95,705.81,1.06261399]
[1735703064181,0.26061289,706.94,705.81,1.06261399]
[1735703064779,1.31472517,706.93,705.59,1.06261399]
[1735703064982,0.26066698,706.92,705.59,1.06261399]
[1735703065280,0.26067655,706.91,705.59,1.06261399]
[1735703065484,0.26067655,706.9,705.59,1.06261399]
[1735703065685,0.26067655,706.89,705.59,1.06261399]
[1735703065985,0.26067655,706.88,705.59,1.06261399]
[1735703066279,0.26067655,706.87,705.59,1.06261399]
[1735703067085,1.31473474,706.87,705.57,1.06261399]
[1735703067278,0.26067655,706.86,705.57,1.06261399]
[1735703067780,1.05405819,706.87,705.57,1.06261399]
[1735703067984,0.26068262,706.86,705.57,1.06261399]
[1735703068184,0.26068262,706.86,705.55,1.06261399]
[1735703068484,0.26068262,706.85,705.55,1.06261399]
[1735703068677,0.26068262,706.84,705.55,1.06261399]
[1735703068879,0.26068262,706.83,705.55,1.06261399]
[1735703069181,0.26068262,706.82,705.55,1.06261399]
[1735703069381,0.26068262,706.81,705.53,1.06261399]
[1735703069581,0.26068262,706.8,705.53,1.06261399]
[1735703069782,0.26068262,706.79,705.53,1.06261399]
[1735703069983,1.47833998,706.88,705.53,1.06261399]
[1735703070179,0.26068091,706.87,705.53,1.06261399]
[1735703070787,0.26068091,706.87,705.52,1.06261399]
[1735703071788,1.05405819,706.85,705.64,1.06261399]
[1735703071987,0.26068091,706.84,705.64,1.06261399]
[1735703073090,0.26068091,706.84,705.66,1.06261399]
[1735703073293,0.26066452,706.83,705.66,1.06261399]
[1735703073489,0.26066452,706.82,705.66,1.06261399]
[1735703073689,0.26066452,706.81,705.66,1.06261399]
[1735703073890,0.26066452,706.8,705.66,1.06261399]
[1735703074092,0.26066452,706.79,705.62,1.06261399]
[1735703074289,0.26066452,706.78,705.62,1.06261399]
[1735703074590,0.26066452,706.77,705.62,1.06261399]
[1735703074792,0.26066452,706.76,705.62,1.06261399]
[1735703074989,1.47833998,706.88,705.62,1.06261399]
[1735703074990,0.26066452,706.75,705.62,1.06261399]
[1735703075190,1.47833998,706.88,705.4,0.28352707]
[1735703075191,0.26066452,706.74,705.6,1.06261399]
[1735703075390,0.26066452,706.73,705.6,1.06261399]
[1735703075585,1.05405819,706.87,705.6,1.06261399]
[1735703075586,0.26066452,706.72,705.6,1.06261399]
[1735703075790,0.26066452,706.71,705.6,1.06261399]
[1735703075984,0.26067516,706.7,705.6,1.06261399]
[1735703076194,0.26067516,706.69,705.6,1.06261399]
[1735703076391,1.05405819,706.87,705.6,1.06261399]
[1735703076692,1.05405819,706.87,705.4,0.28352707]
[1735703076693,1.05405819,706.85,705.62,1.06261399]
[1735703076892,0.26066926,706.84,705.62,1.06261399]
[1735703077893,0.26066926,706.83,705.64,1.06261399]
[1735703078096,0.26066926,706.86,705.64,1.06261399]
[1735703078295,0.26066926,706.85,705.64,1.06261399]
[1735703078491,0.26066926,706.84,705.64,1.06261399]
[1735703078695,0.26066926,706.86,705.64,1.06261399]
[1735703078895,0.26066926,706.85,705.63,1.06261399]
[1735703079596,1.05405819,706.84,705.64,1.06261399]
[1735703079798,0.26066926,706.83,705.64,1.06261399]
[1735703081797,0.26066926,706.83,705.43,1.06261399]
[1735703081798,0.26066926,706.83,705.63,1.06261399]
[1735703082893,1.05405819,706.79,705.67,1.06261399]
[1735703083098,0.26066926,706.78,705.67,1.06261399]
[1735703083997,0.26068138,706.77,705.67,1.06261399]
[1735703084198,0.26068138,706.76,705.67,1.06261399]
[1735703084398,0.26068138,706.75,705.68,1.06261399]
[1735703084598,0.26068138,706.74,705.68,1.06261399]
[1735703084798,0.26067746,706.73,705.68,1.06261399]
[1735703084998,0.26067746,706.72,705.68,1.06261399]
[1735703085198,0.26067746,706.71,705.68,1.06261399]
[1735703085392,0.26067746,706.7,705.68,1.06261399]
[1735703085700,0.26067746,706.69,705.65,1.06261399]
[1735703085902,0.26067746,706.68,705.65,1.06261399]
[1735703086092,0.26067746,706.67,705.65,1.06261399]
[1735703086295,1.05405819,706.83,705.65,1.06261399]
[1735703086597,0.2606719,706.82,705.65,1.06261399]
[1735703087398,1.05405819,706.83,705.65,1.06261399]
[1735703087399,0.2606771,706.81,705.65,1.06261399]
[1735703087604,0.2606771,706.8,705.65,1.06261399]
[1735703087801,0.2606771,706.79,705.65,1.06261399]
[1735703088002,0.2606771,706.78,705.65,1.06261399]
[1735703088202,0.2606771,706.77,705.65,1.06261399]
[1735703088402,0.2606771,706.76,705.65,1.06261399]
[1735703088602,1.05405819,706.81,705.65,1.06261399]
[1735703088603,0.2606771,706.75,705.65,1.06261399]
[1735703088898,0.2606771,706.74,705.65,1.06261399]
[1735703089103,1.05405819,706.81,705.65,1.06261399]
[1735703089104,0.2606771,706.73,705.65,1.06261399]
[1735703089295,0.2606771,706.8,705.65,1.06261399]
[1735703089500,0.2606771,706.79,705.65,1.06261399]
[1735703089698,0.2606771,706.78,705.65,1.06261399]
[1735703089904,0.2606771,706.77,705.64,1.06261399]
[1735703090102,0.2606771,706.76,705.64,1.06261399]
[1735703090302,0.2606771,706.75,705.64,1.06261399]
[1735703090502,0.2606771,706.74,705.64,1.06261399]
[1735703090702,0.2606771,706.73,705.64,1.06261399]
[1735703090902,0.2606771,706.72,705.65,1.06261399]
[1735703091103,0.2606771,706.71,705.65,1.06261399]
[1735703091297,1.05405819,706.78,705.65,1.06261399]
[1735703091506,0.26067452,706.77,705.65,1.06261399]
[1735703092905,0.26068124,706.76,705.65,1.06261399]
[1735703093106,0.26068124,706.75,705.65,1.06261399]
[1735703093309,0.26068124,706.74,705.65,1.06261399]
[1735703093607,0.26068124,706.73,705.65,1.06261399]
[1735703093801,0.26068124,706.72,705.65,1.06261399]
[1735703094000,0.26068124,706.71,705.65,1.06261399]
[1735703094200,0.26068124,706.7,705.65,1.06261399]
[1735703094402,0.26068124,706.69,705.68,1.06261399]
[1735703094601,0.26068124,706.68,705.68,1.06261399]
[1735703094799,1.05405819,706.77,705.68,1.06261399]
[1735703095006,0.26067961,706.76,705.68,1.06261399]
[1735703095406,1.05405819,706.75,705.69,1.06261399]
[1735703095609,0.26067961,706.74,705.69,1.06261399]
[1735703096310,1.05405819,706.73,705.71,1.06261399]
[1735703096504,0.26067961,706.72,705.71,1.06261399]
[1735703097310,1.05405819,706.73,705.71,1.06261399]
[1735703097510,1.05405819,706.71,705.73,1.06261399]
[1735703098307,1.05405819,706.76,705.83,1.06261399]
[1735703098610,0.2606506,706.75,705.83,1.06261399]
[1735703099008,1.05405819,706.76,705.83,1.06261399]
[1735703099511,0.26064999,706.75,705.85,1.06261399]
[1735703100313,0.26064999,706.75,705.53,1.34608882]
[1735703100314,1.31470818,706.75,705.82,1.06261399]
[1735703100514,0.26064999,706.74,705.82,1.06261399]
[1735703101013,1.05405819,706.75,705.82,1.06261399]
[1735703101014,0.26067911,706.73,705.82,1.06261399]
[1735703101215,0.26067911,706.72,705.82,1.06261399]
[1735703101414,0.26067911,706.71,705.82,1.06261399]